fUSD/lending_fUSD_20240718
["ID","MTS","AMOUNT","RATE_DAILY","PERIOD"]
[332495098,1721274653442,-525.001114,0.0001499,2]
[332495099,1721274653451,-525.001111,0.0001499,2]
[332495100,1721274653460,-404.968792,0.00014993,2]
[332495101,1721274653469,-404.968792,0.00014993,2]
[332495102,1721274653478,-151.0,0.00014993,2]
[332495103,1721274653487,-151.0,0.00014993,2]
[332495104,1721274653495,-552.557375,0.00014993,2]
[332495105,1721274653505,-552.557375,0.00014993,2]
[332495106,1721274653514,-170.938784,0.00014993,2]
[332495107,1721274653523,-170.938784,0.00014993,2]
[332495108,1721274653532,-672.036834,0.00014993,2]
[332495109,1721274653542,-672.036834,0.00014993,2]
[332495110,1721274653551,-151.0,0.00014993,2]
[332495111,1721274653560,-151.0,0.00014993,2]
[332495112,1721274653569,-331.903348,0.00014993,2]
[332495113,1721274653578,-331.903348,0.00014993,2]
[332495114,1721274653587,-286.658337,0.00014993,2]
[332495115,1721274653596,-286.658337,0.00014993,2]
[332495116,1721274653606,-1324.5265169,0.00014994,2]
[332495117,1721274653615,-3536.31122,0.00014994,2]
[332495118,1721274653625,-5584.0,0.00014995,2]
[332495119,1721274653635,-505.02526193,0.00014999,2]
[332495120,1721274653647,-1325.10523291,0.00014999,5]
[332495121,1721274653657,-213.06550796,0.00014999,2]
[332495122,1721274653666,-151.0,0.00014999,2]
[332495123,1721274653675,-1412.901355,0.00014999,2]
[332495124,1721274653686,-1412.901355,0.00014999,2]
[332495125,1721274653695,-581.325542,0.00014999,2]
[332495126,1721274653704,-151.0,0.00014999,2]
[332495127,1721274653714,-581.325542,0.00014999,2]
[332495128,1721274653724,-151.0,0.00014999,2]
[332495129,1721274653735,-179.414154,0.00014999,2]
[332495130,1721274653745,-179.414154,0.00014999,2]
[332495131,1721274653755,-816.166516,0.00014999,2]
[332495132,1721274653764,-816.166516,0.00014999,2]
[332495133,1721274653773,-2719.824161,0.00014999,2]
[332495134,1721274653782,-2719.824161,0.00014999,2]
[332495135,1721274653791,-746.030332,0.00014999,2]
[332495136,1721274653801,-746.030332,0.00014999,2]
[332495137,1721274653810,-994.216004,0.00014999,2]
[332495138,1721274653819,-994.216004,0.00014999,2]
[332495139,1721274653828,-404.968792,0.00014999,2]
[332495140,1721274653838,-404.968792,0.00014999,2]
[332495141,1721274653847,-151.757957,0.00014999,2]
[332495142,1721274653856,-151.0,0.00014999,2]
[332495143,1721274653865,-151.0,0.00014999,2]
[332495144,1721274653875,-151.0,0.00014999,2]
[332495145,1721274653884,-552.557375,0.00014999,2]
[332495146,1721274653893,-552.557375,0.00014999,2]
[332495147,1721274653902,-170.938784,0.00014999,2]
[332495148,1721274653911,-170.938784,0.00014999,2]
[332495149,1721274653921,-151.0,0.00014999,2]
[332495150,1721274653930,-151.0,0.00014999,2]
[332495151,1721274653939,-672.036834,0.00014999,2]
[332495152,1721274653948,-672.036834,0.00014999,2]
[332495153,1721274653958,-151.0,0.00014999,2]
[332495154,1721274653967,-151.0,0.00014999,2]
[332495155,1721274653976,-2008.270093,0.00014999,2]
[332495156,1721274653985,-2008.270093,0.00014999,2]
[332495157,1721274653994,-881.620626,0.00014999,2]
[332495158,1721274654003,-331.903348,0.00014999,2]
[332495159,1721274654012,-881.620626,0.00014999,2]
[332495160,1721274654021,-331.903348,0.00014999,2]
[332495161,1721274654030,-380.074689,0.00014999,2]
[332495162,1721274654039,-380.074689,0.00014999,2]
[332495163,1721274654047,-286.658337,0.00014999,2]
[332495164,1721274654056,-151.0,0.00014999,2]
[332495165,1721274654065,-286.658337,0.00014999,2]
[332495166,1721274654074,-2542.43366,0.00014999,2]
[332495167,1721274654083,-2542.43366,0.00014999,2]
[332495168,1721274654092,-540745.70211673,0.00015,2]
[332495169,1721274654102,-222450.64319668,0.00015,2]
[332495170,1721274654111,-1927.20853575,0.00015,2]
[332495171,1721274654120,-1312448.9216193,0.00015,2]
[332495172,1721274654129,-236.43998591,0.00015,2]
[332495173,1721274654139,-4853.8135135,0.00015,2]
[332495174,1721274654149,-3973.24754201,0.00015,2]
[332495175,1721274654158,-5660.0,0.00015,10]
[332495176,1721274654167,-304.79070513,0.00015,2]
[332495177,1721274654176,-1586207.26041194,0.00015,2]
[332495178,1721274654186,-969.41653069,0.00015,2]
[332495179,1721274654195,-500.0,0.00015,2]
[332495180,1721274654204,-194.8,0.00015,2]
[332495181,1721274654213,-600.0,0.00015,2]
[332495182,1721274654222,-113408.69389815,0.00015,2]
[332495183,1721274654231,-151.0,0.00015,2]
[332495184,1721274654241,-151.0,0.00015,2]
[332495185,1721274654250,-151.0,0.00015,2]
[332495186,1721274654259,-151.0,0.00015,2]
[332495187,1721274654268,-151.0,0.00015,2]
[332495188,1721274654279,-151.0,0.00015,2]
[332495189,1721274654289,-152.201694,0.00015,2]
[332495190,1721274654298,-151.0,0.00015,2]
[332495191,1721274654308,-151.0,0.00015,2]
[332495192,1721274654318,-151.0,0.00015,2]
[332495193,1721274654328,-151.0,0.00015,2]
[332495194,1721274654338,-285.81072,0.00015,2]
[332495195,1721274654348,-151.504187,0.00015,2]
[332495196,1721274654359,-151.0,0.00015,2]
[332495197,1721274654369,-151.0,0.00015,2]
[332495198,1721274654379,-151.0,0.00015,2]
[332495199,1721274654387,-151.0,0.00015,2]
[332495200,1721274654398,-151.0,0.00015,2]
[332495201,1721274654407,-151.422654,0.00015,2]
[332495202,1721274654416,-208.420244,0.00015,2]
[332495203,1721274654425,-151.0,0.00015,2]
[332495204,1721274654434,-151.0,0.00015,2]
[332495205,1721274654444,-151.0,0.00015,2]
[332495206,1721274654454,-151.0,0.00015,2]
[332495207,1721274654464,-151.0,0.00015,2]
[332495208,1721274654473,-151.0,0.00015,2]
[332495209,1721274654483,-151.0,0.00015,2]
[332495210,1721274654492,-151.0,0.00015,2]
[332495211,1721274654502,-157.35629,0.00015,2]
[332495212,1721274654514,-151.0,0.00015,2]
[332495213,1721274654524,-151.0,0.00015,2]
[332495214,1721274654535,-151.0,0.00015,2]
[332495215,1721274654545,-151.0,0.00015,2]
[332495216,1721274654555,-151.0,0.00015,2]
[332495217,1721274654564,-151.0,0.00015,2]
[332495218,1721274654574,-151.0,0.00015,2]
[332495219,1721274654583,-151.0,0.00015,2]
[332495220,1721274654593,-151.0,0.00015,2]
[332495221,1721274654602,-151.0,0.00015,2]
[332495222,1721274654611,-151.0,0.00015,2]
[332495223,1721274654622,-285.648558,0.00015,2]
[332495224,1721274654632,-151.0,0.00015,2]
[332495225,1721274654645,-151.0,0.00015,2]
[332495226,1721274654654,-151.0,0.00015,2]
[332495227,1721274654664,-151.0,0.00015,2]
[332495228,1721274654673,-151.0,0.00015,2]
[332495229,1721274654683,-151.0,0.00015,2]
[332495230,1721274654694,-151.0,0.00015,2]
[332495231,1721274654704,-151.0,0.00015,2]
[332495232,1721274654714,-151.0,0.00015,2]
[332495233,1721274654726,-151.0,0.00015,2]
[332495234,1721274654736,-151.0,0.00015,2]
[332495235,1721274654747,-151.0,0.00015,2]
[332495236,1721274654757,-151.0,0.00015,2]
[332495237,1721274654767,-151.0,0.00015,2]
[332495238,1721274654776,-264.728341,0.00015,2]
[332495239,1721274654786,-151.0,0.00015,2]
[332495240,1721274654796,-151.0,0.00015,2]
[332495241,1721274654806,-151.0,0.00015,2]
[332495242,1721274654816,-151.0,0.00015,2]
[332495243,1721274654826,-151.0,0.00015,2]
[332495244,1721274654836,-151.0,0.00015,2]
[332495245,1721274654846,-151.0,0.00015,2]
[332495246,1721274654855,-151.0,0.00015,2]
[332495247,1721274654865,-151.0,0.00015,2]
[332495248,1721274654881,-151.0,0.00015,2]
[332495249,1721274654891,-152.083942,0.00015,2]
[332495250,1721274654901,-151.0,0.00015,2]
[332495251,1721274654913,-151.0,0.00015,2]
[332495252,1721274654923,-151.0,0.00015,2]
[332495253,1721274654934,-151.0,0.00015,2]
[332495254,1721274654944,-151.0,0.00015,2]
[332495255,1721274654954,-151.767249,0.00015,2]
[332495256,1721274654965,-151.0,0.00015,2]
[332495257,1721274654974,-151.280609,0.00015,2]
[332495258,1721274654984,-369.792781,0.00015,2]
[332495259,1721274654993,-369.792781,0.00015,2]
[332495260,1721274655003,-369.792781,0.00015,2]
[332495261,1721274655013,-369.792781,0.00015,2]
[332495262,1721274655023,-369.792781,0.00015,2]
[332495263,1721274655033,-151.0,0.00015,2]
[332495264,1721274655043,-369.792781,0.00015,2]
[332495265,1721274655053,-151.0,0.00015,2]
[332495266,1721274655063,-369.792781,0.00015,2]
[332495267,1721274655072,-151.0,0.00015,2]
[332495268,1721274655082,-369.792781,0.00015,2]
[332495269,1721274655091,-151.0,0.00015,2]
[332495270,1721274655101,-151.0,0.00015,2]
[332495271,1721274655110,-151.0,0.00015,2]
[332495272,1721274655122,-151.0,0.00015,2]
[332495273,1721274655131,-369.792781,0.00015,2]
[332495274,1721274655140,-279.907917,0.00015,2]
[332495275,1721274655151,-369.792781,0.00015,2]
[332495276,1721274655160,-369.792781,0.00015,2]
[332495277,1721274655170,-369.792781,0.00015,2]
[332495278,1721274655179,-369.792781,0.00015,2]
[332495279,1721274655190,-369.792781,0.00015,2]
[332495280,1721274655200,-369.792781,0.00015,2]
[332495281,1721274655210,-369.792781,0.00015,2]
[332495282,1721274655220,-219.774835,0.00015,2]
[332495283,1721274655230,-219.774835,0.00015,2]
[332495284,1721274655240,-219.774835,0.00015,2]
[332495285,1721274655250,-219.774835,0.00015,2]
[332495286,1721274655259,-219.774835,0.00015,2]
[332495287,1721274655269,-219.774835,0.00015,2]
[332495288,1721274655279,-219.774835,0.00015,2]
[332495289,1721274655288,-219.774835,0.00015,2]
[332495290,1721274655298,-219.774835,0.00015,2]
[332495291,1721274655308,-219.774835,0.00015,2]
[332495292,1721274655317,-219.774835,0.00015,2]
[332495293,1721274655327,-219.774835,0.00015,2]
[332495294,1721274655336,-219.774835,0.00015,2]
[332495295,1721274655346,-219.774835,0.00015,2]
[332495296,1721274655356,-219.774835,0.00015,2]
[332495297,1721274655366,-219.774831,0.00015,2]
[332495298,1721274655379,-284.640895,0.00015,2]
[332495299,1721274655388,-284.640895,0.00015,2]
[332495300,1721274655397,-284.640895,0.00015,2]
[332495301,1721274655408,-284.640895,0.00015,2]
[332495302,1721274655417,-151.0,0.00015,2]
[332495303,1721274655427,-284.640895,0.00015,2]
[332495304,1721274655437,-284.640895,0.00015,2]
[332495305,1721274655446,-151.0,0.00015,2]
[332495306,1721274655456,-284.640895,0.00015,2]
[332495307,1721274655465,-151.0,0.00015,2]
[332495308,1721274655475,-284.640895,0.00015,2]
[332495309,1721274655484,-151.0,0.00015,2]
[332495310,1721274655493,-151.0,0.00015,2]
[332495311,1721274655503,-151.0,0.00015,2]
[332495312,1721274655512,-151.0,0.00015,2]
[332495313,1721274655522,-151.0,0.00015,2]
[332495314,1721274655531,-151.0,0.00015,2]
[332495315,1721274655541,-284.640895,0.00015,2]
[332495316,1721274655551,-151.0,0.00015,2]
[332495317,1721274655561,-284.640895,0.00015,2]
[332495318,1721274655570,-284.640895,0.00015,2]
[332495319,1721274655580,-151.0,0.00015,2]
[332495320,1721274655589,-284.640895,0.00015,2]
[332495321,1721274655598,-284.640895,0.00015,2]
[332495322,1721274655608,-284.640895,0.00015,2]
[332495323,1721274655619,-151.0,0.00015,2]
[332495324,1721274655630,-151.0,0.00015,2]
[332495325,1721274655641,-151.0,0.00015,2]
[332495326,1721274655652,-284.640895,0.00015,2]
[332495327,1721274655661,-235.448491,0.00015,2]
[332495328,1721274655671,-284.64089945,0.00015,2]
[332495329,1721274655681,-151.0,0.00015,2]
[332495330,1721274655691,-151.0,0.00015,2]
[332495331,1721274655701,-151.0,0.00015,2]
[332495332,1721274655710,-151.0,0.00015,2]
[332495333,1721274655723,-151.0,0.00015,2]
[332495334,1721274655734,-151.0,0.00015,2]
[332495335,1721274655743,-151.0,0.00015,2]
[332495336,1721274655752,-175.751971,0.00015,2]
[332495337,1721274655761,-151.0,0.00015,2]
[332495338,1721274655772,-225.746786,0.00015,2]
[332495339,1721274655781,-151.0,0.00015,2]
[332495340,1721274655791,-151.0,0.00015,2]
[332495341,1721274655800,-153.451553,0.00015,2]
[332495342,1721274655810,-1412.901355,0.00015,2]
[332495343,1721274655820,-1412.901355,0.00015,2]
[332495344,1721274655829,-1412.901355,0.00015,2]
[332495345,1721274655838,-1412.901355,0.00015,2]
[332495346,1721274655847,-1412.901355,0.00015,2]
[332495347,1721274655857,-1412.901355,0.00015,2]
[332495348,1721274655866,-1412.901355,0.00015,2]
[332495349,1721274655877,-1412.901355,0.00015,2]
[332495350,1721274655887,-1412.901355,0.00015,2]
[332495351,1721274655896,-1412.901355,0.00015,2]
[332495352,1721274655906,-1412.901355,0.00015,2]
[332495353,1721274655915,-1412.90135,0.00015,2]
[332495354,1721274655924,-581.325542,0.00015,2]
[332495355,1721274655933,-581.325542,0.00015,2]
[332495356,1721274655943,-581.325542,0.00015,2]
[332495357,1721274655952,-581.325542,0.00015,2]
[332495358,1721274655962,-581.325542,0.00015,2]
[332495359,1721274655972,-581.325542,0.00015,2]
[332495360,1721274655981,-270.512332,0.00015,2]
[332495361,1721274655990,-581.325542,0.00015,2]
[332495362,1721274656000,-581.325542,0.00015,2]
[332495363,1721274656009,-581.325542,0.00015,2]
[332495364,1721274656019,-581.325542,0.00015,2]
[332495365,1721274656029,-581.325542,0.00015,2]
[332495366,1721274656039,-581.325547,0.00015,2]
[332495367,1721274656048,-151.0,0.00015,2]
[332495368,1721274656057,-151.0,0.00015,2]
[332495369,1721274656067,-151.0,0.00015,2]
[332495370,1721274656076,-151.0,0.00015,2]
[332495371,1721274656085,-179.414154,0.00015,2]
[332495372,1721274656094,-179.414154,0.00015,2]
[332495373,1721274656295,-151.0,0.00015,2]
[332495374,1721274656305,-179.414154,0.00015,2]
[332495375,1721274656315,-240.640738,0.00015,2]
[332495376,1721274656324,-179.414154,0.00015,2]
[332495377,1721274656334,-179.414154,0.00015,2]
[332495378,1721274656343,-179.414154,0.00015,2]
[332495379,1721274656353,-179.414154,0.00015,2]
[332495380,1721274656363,-179.414155,0.00015,2]
[332495381,1721274656374,-816.166516,0.00015,2]
[332495382,1721274656384,-816.166516,0.00015,2]
[332495383,1721274656394,-816.166516,0.00015,2]
[332495384,1721274656403,-816.166516,0.00015,2]
[332495385,1721274656413,-816.166516,0.00015,2]
[332495386,1721274656422,-816.166516,0.00015,2]
[332495387,1721274656432,-816.166516,0.00015,2]
[332495388,1721274656441,-816.166515,0.00015,2]
[332495389,1721274656451,-2719.824161,0.00015,2]
[332495390,1721274656461,-2719.824161,0.00015,2]
[332495391,1721274656470,-2719.824161,0.00015,2]
[332495392,1721274656479,-2719.824161,0.00015,2]
[332495393,1721274656489,-2719.824161,0.00015,2]
[332495394,1721274656498,-2719.824161,0.00015,2]
[332495395,1721274656508,-2719.824161,0.00015,2]
[332495396,1721274656518,-2719.824155,0.00015,2]
[332495397,1721274656527,-746.030332,0.00015,2]
[332495398,1721274656537,-746.030332,0.00015,2]
[332495399,1721274656548,-746.030332,0.00015,2]
[332495400,1721274656557,-746.030332,0.00015,2]
[332495401,1721274656567,-746.030332,0.00015,2]
[332495402,1721274656577,-746.030332,0.00015,2]
[332495403,1721274656586,-746.030332,0.00015,2]
[332495404,1721274656596,-746.030333,0.00015,2]
[332495405,1721274656605,-994.216004,0.00015,2]
[332495406,1721274656615,-994.216004,0.00015,2]
[332495407,1721274656626,-994.216004,0.00015,2]
[332495408,1721274656635,-994.216004,0.00015,2]
[332495409,1721274656650,-994.216004,0.00015,2]
[332495410,1721274656660,-994.216004,0.00015,2]
[332495411,1721274656669,-994.216004,0.00015,2]
[332495412,1721274656679,-994.216011,0.00015,2]
[332495413,1721274656689,-404.968792,0.00015,2]
[332495414,1721274656699,-404.968792,0.00015,2]
[332495415,1721274656708,-404.968792,0.00015,2]
[332495416,1721274656719,-404.968792,0.00015,2]
[332495417,1721274656728,-404.968792,0.00015,2]
[332495418,1721274656738,-404.968799,0.00015,2]
[332495419,1721274656747,-151.0,0.00015,2]
[332495420,1721274656757,-151.0,0.00015,2]
[332495421,1721274656766,-151.0,0.00015,2]
[332495422,1721274656776,-151.0,0.00015,2]
[332495423,1721274656785,-151.0,0.00015,2]
[332495424,1721274656795,-552.557375,0.00015,2]
[332495425,1721274656804,-552.557375,0.00015,2]
[332495426,1721274656814,-552.557375,0.00015,2]
[332495427,1721274656823,-552.557375,0.00015,2]
[332495428,1721274656832,-552.557375,0.00015,2]
[332495429,1721274656842,-552.557371,0.00015,2]
[332495430,1721274656851,-170.938784,0.00015,2]
[332495431,1721274656861,-170.938784,0.00015,2]
[332495432,1721274656870,-170.938784,0.00015,2]
[332495433,1721274656879,-170.938784,0.00015,2]
[332495434,1721274656889,-170.938784,0.00015,2]
[332495435,1721274656898,-170.938775,0.00015,2]
[332495436,1721274656908,-151.0,0.00015,2]
[332495437,1721274656917,-151.0,0.00015,2]
[332495438,1721274656926,-672.036834,0.00015,2]
[332495439,1721274656937,-672.036834,0.00015,2]
[332495440,1721274656946,-672.036834,0.00015,2]
[332495441,1721274656956,-672.036834,0.00015,2]
[332495442,1721274656966,-672.036834,0.00015,2]
[332495443,1721274656975,-672.036843,0.00015,2]
[332495444,1721274656985,-151.0,0.00015,2]
[332495445,1721274656994,-151.0,0.00015,2]
[332495446,1721274657004,-151.0,0.00015,2]
[332495447,1721274657013,-151.0,0.00015,2]
[332495448,1721274657023,-151.0,0.00015,2]
[332495449,1721274657033,-151.0,0.00015,2]
[332495450,1721274657043,-2008.270093,0.00015,2]
[332495451,1721274657052,-2008.270093,0.00015,2]
[332495452,1721274657062,-2008.270093,0.00015,2]
[332495453,1721274657071,-2008.2701,0.00015,2]
[332495454,1721274657081,-881.620626,0.00015,2]
[332495455,1721274657090,-881.620626,0.00015,2]
[332495456,1721274657100,-331.903348,0.00015,2]
[332495457,1721274657109,-331.903348,0.00015,2]
[332495458,1721274657118,-331.903348,0.00015,2]
[332495459,1721274657128,-881.620626,0.00015,2]
[332495460,1721274657138,-881.620623,0.00015,2]
[332495461,1721274657147,-331.903348,0.00015,2]
[332495462,1721274657156,-331.903348,0.00015,2]
[332495463,1721274657165,-331.903354,0.00015,2]
[332495464,1721274657175,-380.074689,0.00015,2]
[332495465,1721274657184,-380.074689,0.00015,2]
[332495466,1721274657193,-380.074689,0.00015,2]
[332495467,1721274657202,-380.074683,0.00015,2]
[332495468,1721274657211,-286.658337,0.00015,2]
[332495469,1721274657221,-286.658337,0.00015,2]
[332495470,1721274657230,-286.658337,0.00015,2]
[332495471,1721274657239,-151.0,0.00015,2]
[332495472,1721274657248,-151.0,0.00015,2]
[332495473,1721274657257,-286.658337,0.00015,2]
[332495474,1721274657267,-286.658337,0.00015,2]
[332495475,1721274657276,-286.658346,0.00015,2]
[332495476,1721274657285,-2542.43366,0.00015,2]
[332495477,1721274657294,-2542.43366,0.00015,2]
[332495478,1721274657304,-2542.43366,0.00015,2]
[332495479,1721274657313,-2542.433662,0.00015,2]
[332495480,1721274657322,-1005.0,0.00015,2]
[332495481,1721274657331,-171.08,0.00015,2]
[332495482,1721274657340,-151.0,0.00015004,2]
[332495483,1721274657349,-151.0,0.00015004,2]
[332495484,1721274657359,-151.0,0.00015004,2]
[332495485,1721274657367,-168.187772,0.00015004,2]
[332495486,1721274657378,-1030.1,0.00015014,2]
[332495487,1721274657387,-355.49,0.00015014,2]
[332495488,1721274657396,-150.0,0.00015014,2]
[332495489,1721274657406,-332.14,0.00015014,2]
[332495490,1721274657415,-301.67,0.00015014,2]
[332495491,1721274657424,-150.51,0.00015014,2]
[332495492,1721274657433,-355.49,0.00015014,2]
[332495493,1721274657442,-150.0,0.00015014,2]
[332495494,1721274657451,-300.68,0.00015014,2]
[332495495,1721274657460,-355.49,0.00015014,2]
[332495496,1721274657469,-150.0,0.00015014,2]
[332495497,1721274657478,-355.49,0.00015014,2]
[332495498,1721274657488,-410.0,0.00015014,2]
[332495499,1721274657497,-6074.0,0.00015014,2]
[332495500,1721274657506,-1500.0,0.00015051,2]
[332495501,1721274657515,-231.1996422,0.00015066,2]
[332495502,1721274657524,-1000.0,0.000151,2]
[332495503,1721274657533,-1500.0,0.00015114,2]
[332495504,1721274657543,-1500.0,0.00015121,2]
[332495505,1721274657552,-2000.0,0.0001514,2]
[332495506,1721274657562,-200.0,0.0001514,2]
[332495507,1721274657571,-2000.0,0.0001514,2]
[332495508,1721274657580,-200.0,0.0001514,2]
[332495509,1721274657589,-1500.0,0.00015231,2]
[332495510,1721274657598,-200.0,0.00015291,2]
[332495511,1721274657608,-200.0,0.00015291,2]
[332495512,1721274657617,-151.0,0.00015398,2]
[332495513,1721274657627,-151.0,0.00015398,2]
[332495514,1721274657637,-1500.0,0.00015411,2]
[332495515,1721274657650,-200.0,0.00015444,2]
[332495516,1721274657660,-200.0,0.00015444,2]
[332495517,1721274657668,-174.21,0.00015493,2]
[332495518,1721274657677,-366.056,0.00015497,2]
[332495519,1721274657687,-1672.879,0.00015497,2]
[332495520,1721274657696,-1829.0,0.00015497,2]
[332495521,1721274657706,-1262.052,0.00015497,2]
[332495522,1721274657715,-225.297,0.00015497,2]
[332495523,1721274657726,-451.808,0.00015497,2]
[332495524,1721274657735,-809.0,0.00015497,2]
[332495525,1721274657745,-625.021,0.00015497,2]
[332495526,1721274657754,-489.196,0.00015497,2]
[332495527,1721274657763,-2380.0,0.00015497,2]
[332495528,1721274657774,-554.159,0.00015497,2]
[332495529,1721274657783,-151.693,0.00015497,2]
[332495530,1721274657793,-1992.0,0.00015497,2]
[332495531,1721274657802,-3280.0,0.00015497,2]
[332495532,1721274657811,-211.0,0.00015497,2]
[332495533,1721274657820,-38322.0,0.00015497,2]
[332495534,1721274657830,-1201.329,0.00015497,2]
[332495535,1721274657840,-150.0,0.00015497,2]
[332495536,1721274657850,-150.308,0.00015497,2]
[332495537,1721274657860,-1667.0,0.00015497,2]
[332495538,1721274657869,-5117.0,0.00015497,2]
[332495539,1721274657880,-5823.0,0.00015497,2]
[332495540,1721274657889,-1072.0,0.00015497,2]
[332495541,1721274657897,-1627.0,0.000155,2]
[332495542,1721274657910,-1500.0,0.00015545,2]
[332495543,1721274657919,-200.0,0.00015599,2]
[332495544,1721274657928,-237.4,0.000156,2]
[332495545,1721274657937,-752.248858,0.00015616,2]
[332495546,1721274657946,-749.32,0.00015721,2]
[332495547,1721274657956,-150.0,0.00015766,2]
[332495548,1721274657965,-1500.0,0.00015785,2]
[332495549,1721274657974,-215.45,0.00015821,2]
[332495550,1721274657983,-5000.0,0.00016,2]
[332495551,1721274657993,-161.73,0.00016,2]
[332495552,1721274658002,-158.97684361,0.00016072,2]
[332495553,1721274658011,-1500.0,0.00016093,2]
[332495554,1721274658020,-1500.0,0.00016201,2]
[332495555,1721274658029,-1500.0,0.00016202,2]
[332495556,1721274658038,-450.0,0.0001621,2]
[332495557,1721274658047,-335.0,0.0001621,2]
[332495558,1721274658057,-150.0,0.00016275,2]
[332495559,1721274658066,-1500.0,0.0001631,2]
[332495560,1721274658075,-653.25,0.00016342,2]
[332495561,1721274658084,-1500.0,0.00016343,2]
[332495562,1721274658093,-1500.0,0.00016389,2]
[332495563,1721274658102,-1500.0,0.00016424,2]
[332495564,1721274658111,-752.248858,0.00016438,2]
[332495565,1721274658120,-212.858674,0.00016438,2]
[332495566,1721274658131,-212.858674,0.00016438,2]
[332495567,1721274658140,-212.858674,0.00016438,2]
[332495568,1721274658150,-212.858674,0.00016438,2]
[332495569,1721274658160,-212.858674,0.00016438,2]
[332495570,1721274658169,-212.858674,0.00016438,2]
[332495571,1721274658178,-212.858674,0.00016438,2]
[332495572,1721274658189,-212.858674,0.00016438,2]
[332495573,1721274658200,-212.858674,0.00016438,2]
[332495574,1721274658210,-212.858674,0.00016438,2]
[332495575,1721274658221,-212.858674,0.00016438,2]
[332495576,1721274658233,-212.858674,0.00016438,2]
[332495577,1721274658244,-212.858674,0.00016438,2]
[332495578,1721274658254,-212.858674,0.00016438,2]
[332495579,1721274658263,-212.858674,0.00016438,2]
[332495580,1721274658272,-212.858674,0.00016438,2]
[332495581,1721274658281,-212.858674,0.00016438,2]
[332495582,1721274658290,-212.858674,0.00016438,2]
[332495583,1721274658298,-212.858674,0.00016438,2]
[332495584,1721274658307,-212.85867,0.00016438,2]
[332495585,1721274658316,-6110.74,0.00016438,2]
[332495586,1721274658326,-4348.491687,0.00016438,2]
[332495587,1721274658335,-4348.491687,0.00016438,2]
[332495588,1721274658344,-4348.491687,0.00016438,2]
[332495589,1721274658353,-4348.491687,0.00016438,2]
[332495590,1721274658362,-4348.491687,0.00016438,2]
[332495591,1721274658371,-4348.491687,0.00016438,2]
[332495592,1721274658380,-4348.491687,0.00016438,2]
[332495593,1721274658389,-4348.491687,0.00016438,2]
[332495594,1721274658398,-4348.491687,0.00016438,2]
[332495595,1721274658407,-4348.491687,0.00016438,2]
[332495596,1721274658416,-4348.491687,0.00016438,2]
[332495597,1721274658425,-4348.491687,0.00016438,2]